bitfinex/quotes_ETHUSD_20241129
["timestamp","ask_amount","ask_price","bid_price","bid_amount"]
[1732857307987,0.277799,3599.8,3599.2,0.05196546]
[1732857308187,2.77822,3599.5,3599.0,0.8116]
[1732857308423,2.77822,3599.5,3599.1,0.04856846]
[1732857308625,0.0141276,3600.0,3599.1,0.04856846]
[1732857308626,2.77808,3599.6,3599.1,0.04856846]
[1732857308806,2.7782,3599.5,3599.1,0.04856846]
[1732857309419,2.77837,3599.3,3599.1,0.04856846]
[1732857309603,2.77839,3599.2,3599.1,0.04856846]
[1732857309795,2.77855,3599.0,3598.7,0.7704]
[1732857310108,2.77803,3599.7,3598.9,3.56656]
[1732857310316,2.77803,3599.7,3599.0,0.04851276]
[1732857310535,0.8079,3600.1,3599.0,0.04851276]
[1732857310536,2.77785,3599.9,3599.0,0.04851276]
[1732857310828,2.77837,3599.3,3599.0,0.04851276]
[1732857311190,2.77839,3599.2,3598.9,0.788]
[1732857311392,2.77848,3599.1,3599.0,0.04851276]
[1732857311706,2.77848,3599.1,3599.0,0.04857119]
[1732857311905,2.77848,3599.1,3598.5,0.788]
[1732857312106,2.77816,3599.5,3598.6,0.04864052]
[1732857312307,2.77839,3599.2,3598.6,0.04864052]
[1732857312748,2.27839,3599.2,3598.6,0.04864052]
[1732857312895,2.77855,3599.0,3598.6,0.04864052]
[1732857313100,2.77871,3598.8,3598.6,0.04864052]
[1732857313303,2.77812,3599.6,3598.6,0.04864052]
[1732857313604,2.77837,3599.3,3598.6,2.82746052]
[1732857314827,0.8079,3599.7,3598.6,0.04864052]
[1732857315160,3.34129085,3599.7,3598.6,0.04864052]
[1732857315328,2.77878,3598.7,3598.6,0.04864052]
[1732857316212,2.779,3598.5,3598.1,0.7598]
[1732857316411,2.77872,3598.8,3598.2,0.04870987]
[1732857317419,2.77856,3599.0,3598.2,0.04870987]
[1732857317606,2.77856,3599.0,3598.3,2.77908]
[1732857317811,2.77856,3599.0,3598.4,0.04876869]
[1732857318037,5.55685,3599.2,3598.5,0.7866]
[1732857318207,2.77848,3599.1,3598.5,0.81438602]
[1732857318414,2.77855,3599.0,3598.6,0.04873402]
[1732857319074,2.77862,3598.9,3598.6,0.04873402]
[1732857319225,2.77855,3599.0,3598.6,0.04873402]
[1732857319939,4.85705607,3600.2,3598.7,0.7936]
[1732857320244,2.77812,3599.6,3598.7,0.7936]
[1732857320539,3.5604,3600.1,3598.8,2.7787]
[1732857320736,2.77799,3599.8,3598.9,2.7786]
[1732857320945,2.77792,3599.9,3599.0,3.58194]
[1732857321239,2.77777,3600.0,3599.1,2.77846]
[1732857321469,2.77786,3599.9,3599.1,2.77846]
[1732857321745,3.5604,3600.1,3599.3,2.77829]
[1732857321746,2.77778,3600.0,3599.3,2.77829]
[1732857321903,0.7827,3600.1,3599.4,0.04696726]
[1732857322105,0.7827,3600.1,3599.0,3.94499394]
[1732857322106,2.7919676,3600.0,3599.2,2.77838]
[1732857322301,2.77784,3600.0,3599.3,0.796]
[1732857322502,2.77763,3600.2,3599.5,2.7781]
[1732857322807,2.77763,3600.2,3599.6,0.0469326]
[1732857323006,2.77771,3600.1,3599.4,2.77818]
[1732857323238,2.9326325,3600.3,3599.5,2.82510993]
[1732857323430,0.1550525,3600.3,3599.5,2.82510993]
[1732857323659,2.77763,3600.2,3599.5,0.04694993]
[1732857325050,2.77763,3600.2,3599.5,2.82507993]
[1732857325604,0.1550525,3600.3,3599.5,0.04694993]
[1732857325806,2.9326625,3600.3,3599.5,2.7781]
[1732857326044,0.1550525,3600.3,3599.6,0.0469326]
[1732857326217,2.77763,3600.2,3599.6,0.0469326]
[1732857327543,0.1550525,3600.3,3599.6,0.0469326]
[1732857327840,2.9325925,3600.3,3599.7,3.54469]
[1732857328148,2.9325925,3600.3,3599.8,0.04662625]
[1732857328310,2.9325925,3600.3,3599.7,0.7667]
[1732857328758,0.1550525,3600.3,3599.8,0.04662625]
[1732857329042,0.1550525,3600.3,3599.7,3.54467]
[1732857329350,0.1550525,3600.3,3599.9,0.04660893]
[1732857329519,0.1550525,3600.3,3599.8,0.04662625]
[1732857329725,0.1550525,3600.3,3600.0,0.04659161]
[1732857329948,0.1550525,3600.3,3599.9,0.04660893]
[1732857330130,0.1550525,3600.3,3600.1,0.04657429]
[1732857330446,2.9325925,3600.3,3600.2,0.04655697]
[1732857330826,2.9325925,3600.3,3599.7,0.7667]
[1732857331024,2.9325925,3600.3,3600.2,0.04655697]
[1732857331243,2.9325925,3600.3,3599.7,0.7667]
[1732857331427,2.9325925,3600.3,3600.2,0.04655697]
[1732857331642,2.9325925,3600.3,3599.7,0.7667]
[1732857331838,2.9325925,3600.3,3600.2,0.04655697]
[1732857332022,0.1550525,3600.3,3599.7,0.7667]
[1732857332801,2.77769,3600.2,3599.7,0.7667]
[1732857332914,2.77774,3600.1,3599.7,0.7667]
[1732857333255,0.0141276,3600.0,3599.2,0.7952]
[1732857333459,2.77832,3599.3,3598.6,0.7952]
[1732857333748,2.77827,3599.4,3598.7,2.77876]
[1732857334046,2.77823,3599.5,3598.6,0.7952]
[1732857334047,2.77832,3599.3,3598.6,0.7952]
[1732857334252,2.77857,3599.0,3598.6,0.7952]
[1732857334427,2.77843,3599.2,3598.6,0.7952]
[1732857334622,2.77843,3599.2,3598.6,1.152612]
[1732857335549,2.77824,3599.4,3598.6,3.931402]
[1732857335854,2.77836,3599.3,3598.7,0.02778461]
[1732857336041,2.77817,3599.5,3598.7,2.80648461]
[1732857336239,2.77817,3599.5,3598.7,0.42370827]
[1732857336613,2.77817,3599.5,3598.8,2.77866]
[1732857336819,2.77817,3599.5,3598.7,0.42370827]
[1732857336820,2.77801,3599.7,3598.7,0.42370827]
[1732857337019,2.77826,3599.4,3598.7,0.42370827]
[1732857337215,2.77826,3599.4,3598.8,0.43551103]
[1732857337952,2.77834,3599.3,3598.8,0.43551103]
[1732857338153,2.77842,3599.2,3598.6,1.152612]
[1732857338450,2.77834,3599.3,3598.6,1.152612]
[1732857338763,0.8281,3599.8,3598.6,0.7952]
[1732857339064,2.7784,3599.2,3598.7,0.04377636]
[1732857340399,2.77821,3599.5,3598.7,0.04377636]
[1732857340599,2.77827,3599.4,3598.7,0.04377636]
[1732857340800,2.77837,3599.3,3598.7,0.04377636]
[1732857341014,0.0141276,3599.4,3598.7,0.04377636]
[1732857341303,2.77856,3599.0,3598.7,0.04377636]
[1732857342205,2.77842,3599.2,3598.7,0.04377636]
[1732857342363,2.77824,3599.4,3598.8,0.773]
[1732857342563,2.77824,3599.4,3598.9,0.04266991]
[1732857343398,2.77831,3599.3,3598.9,0.04266991]
[1732857343596,2.77793,3599.8,3598.9,0.04266991]
[1732857343758,2.77818,3599.5,3598.9,0.04266991]
[1732857344125,2.7783,3599.4,3598.9,0.04266991]
[1732857344423,0.7719,3600.0,3598.9,0.04266991]
[1732857344582,0.7719,3600.0,3598.8,0.773]
[1732857344583,2.77828,3599.4,3598.8,0.773]
[1732857344909,2.77828,3599.4,3598.9,0.04266991]
[1732857345118,0.0141276,3599.3,3598.9,0.04266991]
[1732857345287,2.77848,3599.1,3598.9,0.04266991]
[1732857346082,2.77854,3599.0,3598.9,0.04266991]
[1732857346718,2.77845,3599.2,3598.5,0.7885]
[1732857347021,2.77863,3598.9,3598.5,0.7885]
[1732857347791,2.77845,3599.2,3598.5,0.7885]
[1732857348113,2.77876,3598.8,3598.2,2.77916]
[1732857348416,2.77854,3599.0,3598.3,3.19091076]
[1732857348626,2.77863,3598.9,3598.3,0.41183076]
[1732857348917,2.77848,3599.1,3598.4,0.82908762]
[1732857349111,0.7932,3599.4,3598.4,0.8013]
[1732857349317,2.77857,3599.0,3598.4,0.8013]
[1732857349478,2.77863,3598.9,3598.4,1.15934]
[1732857350713,2.77847,3599.1,3598.4,1.15934]
[1732857350917,2.77866,3598.9,3598.4,1.15934]
[1732857351415,0.0141276,3598.8,3598.4,1.15934]
[1732857351641,2.77881,3598.7,3598.3,0.8056]
[1732857352203,2.77872,3598.8,3598.3,0.8056]
[1732857352650,2.77855,3599.0,3598.3,3.58466]
[1732857352940,2.77856,3599.0,3598.3,0.8056]
[1732857353145,2.77864,3598.9,3598.3,0.8056]
[1732857353645,2.77871,3598.8,3598.3,0.8056]
[1732857354148,2.77864,3598.9,3598.4,0.04139387]
[1732857356914,0.7902,3598.8,3598.4,0.04139387]
[1732857357117,2.77878,3598.7,3598.4,0.04139387]
[1732857357331,2.77886,3598.6,3598.0,0.7556]
[1732857357544,2.77886,3598.6,3597.6,2.77962]
[1732857357545,2.77886,3598.6,3598.5,0.04011419]
[1732857357806,2.77908,3598.4,3597.7,0.7556]
[1732857358011,2.77878,3598.7,3597.8,0.03903063]
[1732857358247,5.7784,3599.2,3597.8,0.03903063]
[1732857358248,2.77939,3597.9,3597.8,0.03903063]
[1732857358713,2.77924,3598.1,3597.3,0.7556]
[1732857358914,2.77944,3597.9,3597.8,0.03903063]
[1732857359115,2.77944,3597.9,3597.3,3.53546]
[1732857359314,2.77885,3598.6,3597.8,0.03903063]
[1732857359315,2.77907,3598.4,3597.8,0.03903063]
[1732857359534,2.77907,3598.4,3597.6,2.77961]
[1732857359731,2.77915,3598.3,3597.9,0.03914121]
[1732857359911,2.77915,3598.3,3597.6,2.77961]
[1732857360239,2.77918,3598.2,3597.4,3.133326]
[1732857360551,2.77928,3598.1,3597.5,0.42810318]
[1732857360880,2.77928,3598.1,3597.5,0.03921058]
[1732857362166,2.77901,3598.4,3597.7,2.77954]
[1732857362450,2.77901,3598.4,3597.8,0.03915855]
[1732857362756,2.77885,3598.7,3598.0,0.8008]
[1732857362969,2.77894,3598.5,3598.0,0.8008]
[1732857363121,2.77892,3598.6,3598.1,0.03910653]
[1732857363321,3.60977,3598.8,3598.1,0.03910653]
[1732857363529,2.779,3598.5,3598.1,0.03910653]
[1732857363816,2.779,3598.5,3598.2,0.03778365]
[1732857364018,2.779,3598.5,3598.0,0.8008]
[1732857364334,2.779,3598.5,3598.1,0.03780099]
[1732857365139,2.77901,3598.4,3598.1,0.03780099]
[1732857365465,0.0141276,3598.3,3597.7,2.77954]
[1732857365836,2.77909,3598.3,3597.8,0.03785302]
[1732857366158,0.0141276,3598.2,3597.6,0.8096]
[1732857366470,2.7932276,3598.3,3597.7,0.358923]
[1732857366754,2.77919,3598.2,3597.7,0.39679336]
[1732857367258,2.77939,3598.0,3597.7,0.03787036]
[1732857367461,2.77947,3597.8,3597.7,0.03787036]
[1732857367618,0.8169,3597.0,3596.0,0.8136]
[1732857367825,6.13040085,3597.0,3595.6,0.8136]
[1732857368025,2.78062,3596.4,3595.7,0.03464123]
[1732857368323,2.78041,3596.6,3595.9,2.78088]
[1732857368555,0.61304008,3596.9,3595.7,0.03464123]
[1732857368859,2.78033,3596.7,3595.8,2.81443689]
[1732857369024,2.78054,3596.5,3595.8,0.03341689]
[1732857369230,2.78058,3596.4,3595.6,3.59474]
[1732857369548,3.35029085,3597.0,3595.6,3.59474]
[1732857369549,2.78037,3596.7,3595.7,0.03324877]
[1732857369745,2.78037,3596.7,3595.8,2.78101]
[1732857370059,2.7804,3596.6,3595.9,0.03321404]
[1732857370460,2.78048,3596.5,3595.9,0.03321404]
[1732857370965,2.78009,3597.1,3596.3,2.78057]
[1732857371122,2.78009,3597.0,3596.2,2.78066]
[1732857371329,2.78009,3597.0,3596.4,0.03312725]
[1732857371528,2.78009,3597.0,3596.3,0.0331446]
[1732857371747,0.0141276,3596.9,3596.5,0.03310989]
[1732857371958,0.0141276,3596.9,3596.0,3.53836]
[1732857371959,0.0141276,3596.9,3596.4,0.03312725]
[1732857372137,2.78027,3596.8,3596.6,0.03198219]
[1732857372349,3.05959176,3596.9,3596.5,0.03199954]
[1732857372665,0.8324,3597.2,3596.6,0.03198219]
[1732857372957,2.78032,3596.7,3596.6,0.03198219]
[1732857373167,2.78049,3596.5,3596.0,0.7575]
[1732857373394,2.78032,3596.7,3596.0,0.7575]
[1732857373666,2.7804,3596.6,3596.1,0.03206897]
[1732857373828,2.78049,3596.5,3596.1,0.03206897]
[1732857374025,0.33657909,3596.9,3596.1,0.03206897]
[1732857374226,0.0141276,3596.8,3596.1,0.03206897]
[1732857374441,2.78025,3596.8,3596.1,0.03206897]
[1732857374639,0.33657909,3596.9,3596.1,0.03206897]
[1732857374843,2.78048,3596.5,3596.1,0.03206897]
[1732857375136,2.7807,3596.3,3596.1,0.03206897]
[1732857375474,2.7948376,3596.2,3596.1,0.03206897]
[1732857375638,0.0141276,3596.2,3596.1,0.03206897]
[1732857375966,2.78064,3596.3,3595.6,3.54875]
[1732857376122,3.90525878,3596.5,3595.6,3.54875]
[1732857376325,2.78059,3596.4,3595.7,0.03106607]
[1732857376524,2.78057,3596.4,3595.7,0.03106607]
[1732857376725,2.78057,3596.4,3595.7,2.81209607]
[1732857376959,2.78041,3596.6,3595.7,2.81209607]
[1732857377334,3.53665,3596.8,3595.7,2.81209607]
[1732857377335,2.78049,3596.5,3595.7,2.81209607]
[1732857377546,0.7564,3596.8,3595.7,2.81209607]
[1732857377768,2.78056,3596.4,3595.7,2.81209607]
[1732857378730,2.78042,3596.6,3595.8,2.781]
[1732857378934,2.78042,3596.6,3595.7,3.57003607]
[1732857379261,0.62897909,3596.7,3595.9,2.78094]
[1732857379262,0.0141276,3596.5,3595.9,2.78094]
[1732857379650,0.0141276,3596.5,3596.0,0.03211662]
[1732857379829,2.78055,3596.4,3595.7,0.7579]
[1732857380055,0.0141276,3596.5,3595.8,2.81317134]
[1732857380258,0.0141276,3596.5,3595.9,2.78094]
[1732857380689,0.0141276,3596.5,3596.0,0.03211662]
[1732857381063,2.78041,3596.6,3596.0,0.03211662]
[1732857381368,2.7946676,3596.5,3596.0,0.03211662]
[1732857381536,2.78072,3596.2,3596.0,0.03211662]
[1732857381735,2.78072,3596.2,3595.7,0.7579]
[1732857381948,2.78072,3596.2,3596.1,0.03209634]
[1732857382468,2.78072,3596.2,3595.7,0.7579]
[1732857382653,0.0141276,3596.1,3595.7,0.7579]
[1732857382873,2.78056,3596.4,3595.7,0.7579]
[1732857383165,2.78064,3596.3,3595.7,0.7579]
[1732857383682,2.78048,3596.5,3595.7,0.7579]
[1732857383835,0.62897909,3596.5,3595.7,0.7579]
[1732857384035,2.78058,3596.4,3595.8,0.03218627]
[1732857385067,2.78064,3596.3,3595.8,0.03218627]
[1732857385471,2.78064,3596.3,3595.7,0.7579]
[1732857385771,2.78064,3596.3,3595.9,0.03218346]
[1732857386067,2.78064,3596.3,3596.0,0.0321661]
[1732857386241,0.62897909,3596.5,3596.0,0.0321661]
[1732857386574,0.62897909,3596.5,3595.7,3.53897]
[1732857386743,2.78062,3596.4,3596.1,0.03214874]
[1732857386947,2.78064,3596.3,3595.7,0.7579]
[1732857387147,2.78064,3596.3,3596.2,0.03213138]
[1732857387342,2.78064,3596.3,3595.7,0.7579]
[1732857387547,2.78064,3596.3,3596.2,0.03213138]
[1732857387765,2.78064,3596.3,3595.7,0.7579]
[1732857387980,2.78051,3596.5,3596.2,0.03213138]
[1732857388174,0.7564,3596.8,3595.7,0.78570932]
[1732857388175,0.7564,3596.8,3595.7,0.78570813]
[1732857388474,0.7564,3596.8,3595.0,6.33575293]
[1732857388475,3.53038,3597.2,3596.4,0.8264]
[1732857388661,2.78015,3597.0,3596.4,0.8264]
[1732857388833,2.78015,3597.0,3596.5,0.03207931]
[1732857389038,3.058165,3597.0,3596.4,0.8264]
[1732857389257,5.31320085,3597.4,3596.5,0.03207931]
[1732857389481,2.77981,3597.4,3596.6,2.78034]
[1732857389799,2.78002,3597.1,3596.4,0.8264]
[1732857389980,0.0141276,3597.0,3596.4,0.8264]
[1732857390159,0.0141276,3597.0,3596.4,3.60693]
[1732857390376,5.7799,3597.3,3596.4,3.6069]
[1732857390591,5.7799,3597.3,3596.5,2.81257678]
[1732857390592,2.77994,3597.2,3596.5,2.81257678]
[1732857390885,3.0141276,3597.3,3596.5,0.03209678]
[1732857390886,2.78025,3596.8,3596.5,0.03209678]
[1732857391684,0.0141276,3596.7,3596.1,0.8264]
[1732857391886,2.78032,3596.7,3596.6,0.03207942]
[1732857392290,2.78032,3596.7,3596.1,0.8264]
[1732857392688,2.78041,3596.6,3596.2,0.03214885]
[1732857392924,2.78058,3596.4,3596.2,0.03214885]
[1732857393099,2.7947576,3596.3,3596.2,0.03214885]
[1732857393397,2.7947576,3596.3,3595.8,0.7918]
[1732857393760,2.78076,3596.2,3595.8,0.7918]
[1732857393961,2.78076,3596.2,3595.9,0.03216891]
[1732857394683,0.0141276,3596.1,3595.5,0.7918]
[1732857394888,0.0141276,3596.1,3596.0,0.03215155]
[1732857395059,2.78092,3596.0,3595.5,0.7918]
[1732857395297,2.78092,3596.0,3595.6,0.032221]
[1732857395592,2.78081,3596.1,3595.6,0.032221]
[1732857395769,2.78095,3595.9,3595.2,3.59188]
[1732857395951,2.78095,3595.9,3595.3,0.0322731]
[1732857396156,0.754,3596.4,3595.3,0.0322731]
[1732857396157,2.78104,3595.8,3595.3,0.0322731]
[1732857396357,2.78116,3595.7,3595.2,0.8104]
[1732857396592,2.78116,3595.7,3595.3,0.0322731]
[1732857396800,2.78116,3595.7,3595.0,2.78163]
[1732857397008,2.78116,3595.7,3595.1,0.03230783]
[1732857397396,0.8167,3595.8,3595.1,0.03230783]
[1732857397584,2.78095,3595.9,3595.1,0.03230783]
[1732857398128,2.78104,3595.8,3595.1,0.03230783]
[1732857398422,2.78117,3595.6,3595.1,0.03230783]
[1732857398709,2.7811,3595.7,3595.0,2.78163]
[1732857398867,3.59756,3596.0,3595.2,0.03229046]
[1732857399073,4.17220826,3596.0,3595.0,2.78163]
[1732857399267,4.17220826,3596.0,3595.1,0.03230783]
[1732857399503,4.17220826,3596.0,3595.1,2.81383783]
[1732857401307,2.78127,3595.5,3595.1,0.03230783]
[1732857401608,1.14376668,3595.4,3594.6,3.58502]
[1732857401825,1.12963908,3595.4,3594.7,0.03269468]
[1732857402028,3.0,3596.0,3594.7,0.03269468]
[1732857402202,0.8009,3596.3,3595.3,2.78136]
[1732857402385,0.8009,3596.3,3595.5,2.78117]
[1732857402586,3.58155,3596.3,3595.5,2.78117]
[1732857402780,3.58155,3596.3,3595.6,0.03288488]
[1732857403217,2.53339085,3596.4,3595.8,0.8011]
[1732857403533,2.78035,3596.7,3595.9,2.81376279]
[1732857403830,2.78035,3596.7,3596.0,2.78086]
[1732857403999,2.53339085,3596.8,3596.1,2.81356807]
[1732857404182,2.77998,3597.2,3596.1,2.81356807]
[1732857404183,2.53339085,3597.2,3596.3,2.78057]
[1732857404388,0.8303,3597.1,3596.4,0.03262658]
[1732857405390,2.7801,3597.0,3596.4,0.03262658]
[1732857405723,3.8303,3597.1,3596.4,0.03262658]
[1732857405883,2.78017,3596.9,3596.4,0.03262658]
[1732857406092,2.78017,3596.9,3596.3,0.8213]
[1732857406301,6.61035,3597.1,3596.3,3.60193]
[1732857406553,2.77952,3597.8,3597.0,2.78008]
[1732857406687,2.77952,3597.8,3597.1,0.8213]
[1732857406888,2.77952,3597.8,3597.1,0.85261251]
[1732857407523,2.77932,3598.0,3597.1,3.63255251]
[1732857407723,2.53339085,3598.1,3597.1,3.63255251]
[1732857407724,2.77939,3597.9,3597.2,2.77992]
[1732857407971,0.53127808,3597.8,3597.2,2.77992]
[1732857408085,2.53339085,3598.1,3597.2,2.77992]
[1732857408086,3.0,3598.0,3597.4,2.77977]
[1732857408287,2.53339085,3598.1,3597.4,2.77977]
[1732857408628,2.53339085,3598.1,3597.5,0.03115287]
[1732857408824,3.5593,3598.2,3597.5,0.03115287]
[1732857408998,3.5734276,3598.2,3597.5,0.03115287]
[1732857409203,2.77924,3598.1,3597.5,0.03115287]
[1732857409401,0.0141276,3598.0,3597.5,0.03115287]
[1732857409603,0.0141276,3598.0,3597.2,2.77992]
[1732857409804,0.0141276,3598.0,3597.4,2.77976]
[1732857410326,0.0141276,3598.0,3597.5,0.03093168]
[1732857410514,0.37147436,3598.0,3597.5,0.03093168]
[1732857410826,5.77911,3598.3,3597.6,0.7965]
[1732857411133,5.77911,3598.3,3597.7,0.03089699]
[1732857411328,3.0,3598.4,3597.7,0.03089699]
[1732857411526,5.77902,3598.4,3597.7,0.03089699]
[1732857413837,2.7794,3597.9,3597.8,0.03087965]
[1732857414039,2.7935276,3597.9,3596.8,2.78017]
[1732857414243,2.7935276,3597.9,3596.9,0.7816]
[1732857414244,2.77964,3597.6,3596.9,0.7816]
[1732857414425,0.0141276,3597.5,3596.9,0.81202158]
[1732857414627,2.77955,3597.7,3597.0,2.78005]
[1732857414830,2.77932,3598.0,3596.9,3.59217158]
[1732857415034,2.77932,3598.0,3597.0,0.03040422]
[1732857415211,2.7794,3597.9,3597.2,2.77993]
[1732857415406,2.53339085,3597.3,3596.6,0.7514]
[1732857415610,0.55,3597.6,3596.6,0.7514]
[1732857415904,2.77984,3597.4,3596.6,0.7514]
[1732857416116,0.0141276,3597.3,3596.6,3.53179]
[1732857416322,2.7940076,3597.3,3596.6,0.7514]
[1732857417816,2.77988,3597.3,3596.6,3.53174]
[1732857418018,2.53339085,3597.7,3596.7,2.78029]
[1732857418222,2.77971,3597.5,3596.7,2.78029]
[1732857418421,2.77971,3597.5,3596.8,2.78022]
[1732857418618,0.62863909,3597.6,3597.0,0.7994]
[1732857419345,3.40826909,3597.6,3597.0,0.7994]
[1732857419713,0.62863909,3597.6,3597.0,0.7994]
[1732857419927,2.77964,3597.6,3597.0,0.7994]
[1732857420142,2.77971,3597.5,3597.0,0.7994]
[1732857420350,0.0141276,3597.4,3597.0,0.7994]
[1732857420649,2.77965,3597.6,3597.0,0.7994]
[1732857420810,0.0141276,3597.5,3597.0,0.7994]
[1732857421009,2.77953,3597.8,3597.0,0.7994]
[1732857421213,5.77932,3598.0,3597.2,2.77986]
[1732857421508,3.0,3598.1,3597.3,3.60969149]
[1732857421737,2.77932,3598.0,3597.3,3.60969149]
[1732857422985,0.0141276,3597.9,3597.3,0.82987149]
[1732857423269,3.32626645,3597.9,3597.3,0.7994]
[1732857423413,3.32626645,3597.9,3595.3,2.78138]
[1732857423414,2.77977,3597.5,3596.9,0.7994]
[1732857423613,2.7939076,3597.4,3597.0,0.03052354]
[1732857423914,2.7939076,3597.4,3596.9,0.7994]
[1732857424141,2.7939076,3597.4,3597.1,0.03050619]
[1732857424326,2.7939076,3597.4,3597.0,0.03052354]
[1732857424529,2.7939076,3597.4,3597.2,0.03048884]
[1732857424737,3.16462609,3597.4,3597.1,0.03050619]
[1732857424945,3.16462609,3597.4,3596.9,0.7994]
[1732857424946,3.16462609,3597.4,3597.3,0.03047149]
[1732857425147,3.16462609,3597.4,3597.2,0.02946161]
[1732857425451,2.78018,3596.9,3596.4,0.779]
[1732857425756,2.7805,3596.5,3596.0,0.779]
[1732857425926,2.7805,3596.5,3595.3,0.779]
[1732857425927,2.78064,3596.3,3595.3,0.779]
[1732857426113,2.78064,3596.3,3595.5,2.78118]
[1732857426315,0.0141276,3596.2,3595.5,2.78118]
[1732857426745,2.78064,3596.3,3595.5,2.78118]
[1732857427964,0.0141276,3596.4,3595.5,0.634157]
[1732857428171,0.0141276,3596.4,3595.4,3.59072]
[1732857428373,2.78063,3596.3,3595.4,3.59072]
[1732857428644,2.78063,3596.3,3595.4,3.59066]
[1732857428840,2.78055,3596.5,3595.4,0.8094]
[1732857429186,2.78065,3596.3,3595.5,2.81045034]
[1732857429982,2.78055,3596.5,3595.5,2.81045034]
[1732857430170,0.0141276,3596.4,3595.5,2.81045034]
[1732857430357,2.7807,3596.3,3595.5,2.81045034]
[1732857430675,0.0141276,3596.2,3595.6,2.78114]
[1732857430979,2.7946376,3596.5,3595.7,2.80960591]
[1732857431167,2.7947076,3596.4,3595.7,2.80960591]
[1732857431367,2.78058,3596.4,3595.7,0.02855591]
[1732857431576,0.0141276,3596.3,3595.7,0.02855591]
[1732857432286,0.0141276,3596.3,3595.8,0.02850689]
[1732857432490,2.78094,3595.9,3595.4,0.8094]
[1732857432779,0.7722,3596.2,3595.5,0.02824682]
[1732857432780,2.7951576,3595.8,3595.5,0.02824682]
[1732857433014,2.78117,3595.6,3595.5,0.02824682]
[1732857433285,2.7808,3596.1,3595.5,0.02824973]
[1732857433645,2.7808,3596.1,3595.6,0.02798264]
[1732857433839,2.7808,3596.1,3595.4,2.7813]
[1732857434085,2.7808,3596.1,3595.5,0.028]
[1732857434665,2.78064,3596.3,3595.5,0.028]
[1732857434983,2.78064,3596.3,3595.5,2.80923]
[1732857435149,2.78064,3596.3,3595.6,2.78116]
[1732857435348,2.78064,3596.3,3595.6,2.80914264]
[1732857435558,3.31119085,3596.4,3595.7,2.78109]
[1732857435745,2.78063,3596.3,3595.7,0.79046527]
[1732857436081,2.78074,3596.2,3595.7,0.79046527]
[1732857436241,0.0141276,3596.1,3595.7,0.02796527]
[1732857436443,0.0141276,3596.1,3595.4,3.54379]
[1732857436678,0.0141276,3596.1,3595.5,0.02834932]
[1732857437045,2.78086,3596.0,3595.5,0.02834932]
[1732857437251,0.0141276,3595.9,3595.5,0.02834932]
[1732857437653,2.78063,3596.3,3595.5,0.02834932]
[1732857437654,2.78063,3596.3,3595.5,2.80958932]
[1732857437855,2.7809,3596.0,3595.5,0.02834932]
[1732857438075,2.78077,3596.2,3595.5,0.02834932]
[1732857438247,2.78077,3596.2,3595.5,2.80956932]
[1732857438453,2.78077,3596.2,3595.5,2.78122]
[1732857438789,3.55838,3596.4,3595.6,2.80949487]
[1732857439080,2.78058,3596.4,3595.6,2.80949487]
[1732857439292,2.78066,3596.3,3595.6,2.80949487]
[1732857440283,3.0,3596.6,3595.6,2.80943487]
[1732857440590,2.78048,3596.5,3595.8,2.78101]
[1732857440792,2.78048,3596.5,3595.6,2.80943487]
[1732857440793,2.78056,3596.4,3595.7,0.02827674]
[1732857440965,2.78051,3596.5,3595.9,0.02824201]
[1732857441165,2.78051,3596.5,3595.8,2.80925937]
[1732857441349,2.78051,3596.5,3596.0,0.02822465]
[1732857441553,2.7802,3596.9,3596.1,0.7593]
[1732857441796,2.78019,3596.9,3596.2,2.7807]
[1732857442058,2.78019,3596.9,3596.1,0.78749855]
[1732857442059,2.78023,3596.9,3596.1,3.54005]
[1732857442248,2.78041,3596.6,3596.1,0.7593]
[1732857442587,2.78009,3597.0,3596.2,2.8088612]
[1732857443275,2.78009,3597.0,3596.4,0.8234]
[1732857443687,2.78035,3596.7,3596.5,0.02812912]
[1732857443855,2.78017,3596.9,3596.5,0.02812912]
[1732857444055,3.0,3597.0,3596.5,0.02812912]
[1732857444256,2.77997,3597.2,3596.5,0.02812912]
[1732857444455,3.38732609,3597.2,3596.5,0.02812912]
[1732857444662,0.60735609,3597.2,3596.6,2.78036]
[1732857444963,5.31318085,3597.4,3596.6,2.78036]
[1732857444964,2.77955,3597.7,3596.7,2.80835441]
[1732857445174,2.77972,3597.5,3596.7,2.80835441]
[1732857445926,2.77972,3597.5,3596.8,2.78019]
[1732857446126,2.77955,3597.7,3596.9,2.78016]
[1732857446309,2.77964,3597.6,3596.9,2.78016]
[1732857446514,2.77964,3597.6,3597.0,0.02786768]
[1732857448421,0.0141276,3597.5,3597.0,0.02786768]
[1732857448795,2.78001,3597.2,3596.7,0.55314801]
[1732857449109,0.0141276,3597.2,3596.7,3.33346801]
[1732857449323,0.0141276,3597.2,3596.8,0.02748903]
[1732857449828,0.0141276,3597.2,3596.7,3.33346801]
[1732857450030,2.77994,3597.2,3596.9,0.02747167]
[1732857450338,2.77994,3597.2,3597.0,0.02745432]
[1732857450503,3.33739776,3597.1,3597.0,0.02745432]
[1732857450702,2.78014,3597.0,3596.6,0.8234]
[1732857451040,2.78014,3597.0,3596.7,0.02753257]
[1732857451636,0.55738776,3597.1,3596.7,0.02753257]
[1732857451841,2.78024,3596.9,3596.7,0.02753257]
[1732857452142,2.78024,3596.9,3596.3,0.7622]
[1732857452143,0.0141276,3596.8,3596.3,0.7622]
[1732857452718,2.7943876,3596.8,3596.3,0.7622]
[1732857452921,2.78033,3596.7,3596.3,0.7622]
[1732857453120,2.7945876,3596.6,3596.3,0.7622]
[1732857453457,2.78073,3596.2,3595.9,0.5549479]
[1732857453605,0.0141276,3596.1,3595.8,0.7577]
[1732857453802,2.7949376,3596.1,3595.8,0.7577]
[1732857454038,2.78087,3596.0,3595.8,0.7577]
[1732857454216,2.78063,3596.4,3595.8,0.7577]
[1732857454217,2.78073,3596.2,3595.8,0.7577]
[1732857455555,2.78063,3596.4,3595.8,0.7577]
[1732857455714,5.31364085,3596.8,3595.9,2.7809]
[1732857455934,2.78038,3596.7,3595.9,2.7809]